bitfinex/quotes_SOLUSD_20220119
["timestamp","ask_amount","ask_price","bid_price","bid_amount"]
[1642601877964,34.3773,137.06,136.98,17.2002]
[1642601878159,34.3773,137.06,136.98,11.2002]
[1642601878362,78.15595843,137.06,136.98,11.2002]
[1642601880566,0.25,137.05,136.98,11.2002]
[1642601880765,2.376,137.04,136.98,11.2002]
[1642601880968,2.376,137.04,136.98,0.25]
[1642601881666,2.376,137.04,136.98,10.78]
[1642601882567,2.376,137.05,136.99,21.21663117]
[1642601882768,2.376,137.05,137.0,0.25]
[1642601884170,78.15655843,137.06,137.0,0.25]
[1642601884669,2.376,137.05,136.99,0.25]
[1642601885872,78.15655843,137.06,136.99,0.25]
[1642601886571,78.15655843,137.06,136.99,11.1996]
[1642601886771,78.15655843,137.06,137.0,17.41944741]
[1642601886973,34.3779,137.06,137.0,17.41944741]
[1642601887172,34.3779,137.06,137.01,0.25]
[1642601888176,34.3779,137.06,137.0,0.25]
[1642601888875,42.59539488,137.05,137.0,0.25]
[1642601894809,2.376,137.04,137.0,0.25]
[1642601895609,2.376,137.04,136.99,2.918]
[1642601895809,2.376,137.04,136.99,13.448]
[1642601896409,13.3272,137.04,136.99,13.448]
[1642601897411,2.376,137.04,136.99,13.448]
[1642601897609,2.376,137.04,137.0,0.25]
[1642601904717,55.61237586,137.05,137.0,0.25]
[1642601904718,57.98837586,137.05,137.0,0.25]
[1642601905519,2.06668098,137.04,137.0,0.25]
[1642601906623,2.06668098,137.04,136.99,10.53]
[1642601908222,2.06668098,137.04,137.0,0.25]
[1642601911628,2.06668098,137.05,137.0,10.53]
[1642601911829,4.1176299,137.09,137.01,43.12234147]
[1642601911830,2.06668098,137.06,137.01,43.12234147]
[1642601912130,2.06668098,137.07,137.02,10.53]
[1642601912331,2.06668098,137.07,137.02,21.4763]
[1642601912529,2.06668098,137.08,137.03,0.25]
[1642601912733,2.06668098,137.09,137.04,10.53]
[1642601913131,2.06668098,137.09,137.05,0.25]
[1642601913330,4.44268098,137.09,137.05,0.25]
[1642601913733,2.376,137.09,137.05,0.25]
[1642601914132,4.44268098,137.09,137.05,0.25]
[1642601914534,2.376,137.09,137.05,0.25]
[1642601915033,2.376,137.09,137.04,10.53]
[1642601915234,2.06668098,137.09,137.04,10.53]
[1642601915433,13.3237,137.08,137.04,10.53]
[1642601915632,15.64038098,137.08,137.04,10.53]
[1642601916235,38.192324,137.07,137.04,10.53]
[1642601917033,49.140724,137.07,137.04,10.53]
[1642601917634,49.140724,137.07,137.05,0.25]
[1642601919537,38.192324,137.07,137.05,0.25]
[1642601919739,13.01428098,137.08,137.05,3.28219997]
[1642601919942,13.01428098,137.08,137.06,3.03219997]
[1642601920139,10.9476,137.08,137.06,3.03219997]
[1642601920339,13.3236,137.08,137.06,3.03219997]
[1642601920540,13.3236,137.08,137.05,3.28219997]
[1642601920743,55.11623416,137.08,137.05,3.28219997]
[1642601920946,55.11623416,137.08,137.05,0.25]
[1642601923947,52.74023416,137.08,137.05,0.25]
[1642601925550,52.74023416,137.08,137.04,10.53]
[1642601925749,55.11623416,137.08,137.04,10.53]
[1642601925950,0.25,137.07,136.98,2.918]
[1642601926149,10.95,137.05,137.01,0.25]
[1642601926349,10.95,137.05,137.01,10.78]
[1642601926752,35.45504067,137.04,137.01,10.78]
[1642601927176,35.45504067,137.04,137.02,6.06439994]
[1642601927578,46.40584067,137.04,137.02,3.03219997]
[1642601927787,46.40584067,137.04,137.01,10.78]
[1642601930378,10.9498,137.05,137.01,10.78]
[1642601931280,49.09795893,137.05,137.01,10.78]
[1642601931479,51.47395893,137.05,137.01,10.78]
[1642601937184,2.376,137.05,137.01,10.78]
[1642601937585,13.3247,137.07,137.01,10.78]
[1642601937785,10.9487,137.07,137.01,10.78]
[1642601938388,59.85834711,137.07,137.01,10.78]
[1642601938585,58.34148011,137.07,137.01,10.78]
[1642601939688,2.376,137.06,137.01,10.78]
[1642601941090,58.34148011,137.07,137.01,10.78]
[1642601943595,60.40816109,137.07,137.01,10.78]
[1642601943797,11.49851398,137.07,137.01,53.41699144]
[1642601943995,2.06668098,137.07,137.01,64.36409144]
[1642601944296,2.376,137.08,137.01,137.29409144]
[1642601944495,2.376,137.08,137.01,94.6571]
[1642601944695,2.376,137.08,137.01,21.7271]
[1642601945096,4.44268098,137.08,137.01,21.7271]
[1642601945396,2.376,137.08,137.01,21.7271]
[1642601945628,48.72780014,137.08,137.01,21.7271]
[1642601947628,59.67510014,137.08,137.01,21.7271]
[1642601947828,59.67510014,137.08,137.01,10.53]
[1642601948029,0.25,137.07,137.01,10.53]
[1642601948329,2.376,137.06,137.01,10.53]
[1642601949029,41.49441071,137.05,137.01,10.53]
[1642601949231,41.49441071,137.05,137.02,0.25]
[1642601949431,13.3248,137.06,137.03,10.53]
[1642601949632,2.376,137.06,137.03,10.53]
[1642601950032,2.06668098,137.08,137.03,10.53]
[1642601950232,2.376,137.07,137.04,0.25]
[1642601950437,2.376,137.08,137.04,0.25]
[1642601951231,4.44268098,137.08,137.04,0.25]
[1642601951432,13.3238,137.08,137.04,0.25]
[1642601953332,13.3238,137.08,136.98,134.568]
[1642601953333,10.9503,137.06,136.98,134.568]
[1642601953537,2.376,137.05,137.01,10.53]
[1642601953734,2.376,137.06,137.01,10.53]
[1642601953933,47.5812698,137.05,137.01,10.53]
[1642601954534,10.9505,137.04,137.01,10.53]
[1642601954735,10.9505,137.04,137.02,0.25]
[1642601955538,10.9505,137.04,137.01,10.53]
[1642601955738,47.5812698,137.05,137.01,10.53]
[1642601955739,13.3277,137.03,137.01,10.53]
[1642601955939,10.9517,137.03,137.01,10.53]
[1642601956640,43.18947085,137.02,137.01,10.53]
[1642601957037,43.18947085,137.02,136.98,34.6463]
[1642601957238,43.18947085,137.02,136.98,10.53]
[1642601957838,54.14147085,137.02,136.98,10.53]
[1642601958337,54.14147085,137.02,136.99,0.25]
[1642601958938,43.18947085,137.02,136.99,0.25]
[1642601960741,42.18947085,137.02,136.99,0.25]
[1642601961941,53.14147085,137.02,136.99,0.25]
[1642601963344,42.18947085,137.02,136.99,0.25]
[1642601963545,10.9512,137.03,136.99,0.25]
[1642601966648,42.25457278,137.02,136.99,0.25]
[1642601971352,42.25457278,137.02,136.98,10.53]
[1642601971553,2.376,137.01,136.98,10.53]
[1642601971750,2.626,137.01,136.98,10.53]
[1642601971980,2.626,137.01,136.95,10.53]
[1642601972780,2.626,137.01,136.96,0.25]
[1642601973381,13.5794,137.01,136.96,0.25]
[1642601976289,13.5794,137.01,136.95,10.53]
[1642601977085,15.3532939,137.01,136.95,10.53]
[1642601977884,17.41997488,137.01,136.95,10.53]
[1642601978484,17.41997488,137.01,136.92,10.53]
[1642601978686,10.9577,136.98,136.93,0.25]
[1642601978888,13.3337,136.98,136.93,0.25]
[1642601980087,10.9577,136.98,136.93,0.25]
[1642601983905,34.4389,136.98,136.93,0.25]
[1642601985509,0.25,136.97,136.92,10.53]
[1642601985714,10.9576,136.96,136.92,10.53]
[1642601985919,2.376,136.95,136.92,10.53]
[1642601986116,2.626,136.95,136.92,10.53]
[1642601986317,0.25,136.95,136.92,10.53]
[1642601986515,2.376,136.94,136.92,10.53]
[1642601986717,13.3367,136.94,136.92,10.53]
[1642601987118,1.68648267,136.99,136.92,10.53]
[1642601987318,2.06668098,137.01,136.93,0.25]
[1642601987520,24.67918098,137.02,136.94,10.53]
[1642601987722,2.376,137.01,136.95,0.25]
[1642601987919,4.44268098,137.01,136.95,10.78]
[1642601988121,23.9693,137.04,136.95,10.78]
[1642601988122,10.9558,136.99,136.95,10.78]
[1642601989020,45.24422465,137.0,136.95,10.78]
[1642601990021,45.24422465,137.0,136.95,10.53]
[1642601990423,56.19802465,137.0,136.95,10.53]
[1642601990634,2.376,136.99,136.95,10.53]
[1642601991533,47.98644165,136.97,136.95,10.53]
[1642601992136,24.0655,136.99,136.96,0.25]
[1642601992335,2.376,137.0,136.96,10.78]
[1642601992534,28.17748098,137.03,136.96,10.78]
[1642601992736,10.9537,137.0,136.96,10.78]
[1642601993141,40.80835852,136.99,136.96,10.78]
[1642601993735,40.80835852,136.99,136.97,6.06439994]
[1642601993937,51.76305852,136.99,136.97,6.06439994]
[1642601994639,2.376,136.98,136.96,10.53]
[1642601995038,10.9557,136.98,136.96,10.53]
[1642601995240,10.9557,136.98,136.89,10.9562]
[1642601995445,42.41778267,136.96,136.92,10.53]
[1642601996041,10.9611,136.94,136.92,10.53]
[1642601996240,2.375,136.93,136.88,10.53]
[1642601996740,61.1686,136.95,136.89,0.25]
[1642601996741,63.5426,136.95,136.89,0.25]
[1642601997139,10.9598,136.94,136.89,0.25]
[1642601997339,10.9598,136.94,136.9,10.53]
[1642601997742,10.9598,136.94,136.91,0.25]
[1642601998944,10.9598,136.94,136.92,6.06439994]
[1642602001951,10.9598,136.94,136.91,0.25]
[1642602002952,41.72516735,136.93,136.91,0.25]
[1642602003451,10.96,136.92,136.91,0.25]
[1642602004249,10.96,136.92,136.9,10.53]
[1642602005050,10.96,136.92,136.86,24.1941]
[1642602005250,10.96,136.92,136.87,10.53]
[1642602005450,34.078,136.92,136.87,10.53]
[1642602005852,34.078,136.92,136.88,0.25]
[1642602007355,36.454,136.92,136.88,0.25]
[1642602014166,0.25,136.91,136.87,10.53]
[1642602014367,10.9623,136.9,136.87,10.53]
[1642602014568,2.376,136.89,136.87,10.53]
[1642602014767,2.626,136.89,136.87,10.53]
[1642602014967,34.94792201,136.88,136.87,10.53]
[1642602015672,46.16112201,136.88,136.82,131.65]
[1642602015866,2.376,136.87,136.83,10.53]
[1642602016072,0.25,136.87,136.81,10.53]
[1642602017072,0.25,136.87,136.82,0.25]
[1642602017473,10.9653,136.86,136.82,0.25]
[1642602017677,37.81852461,136.85,136.82,0.25]
[1642602018074,37.81852461,136.85,136.81,10.53]
[1642602019684,37.81852461,136.85,136.82,0.25]
[1642602020981,10.9656,136.85,136.82,0.25]
[1642602021687,10.9656,136.85,136.83,6.06439994]
[1642602022084,58.37550704,136.85,136.82,10.53]
[1642602022487,2.376,136.84,136.82,10.53]
[1642602022887,47.40990704,136.85,136.82,10.53]
[1642602023693,47.40990704,136.85,136.83,0.25]
[1642602024196,47.40990704,136.85,136.8,10.78]
[1642602024920,26.9574,136.87,136.8,21.7441]
[1642602025117,2.376,136.89,136.8,21.7441]
[1642602025318,2.376,136.89,136.81,6.0]
[1642602025518,1.45091664,136.9,136.82,13.452]
[1642602025720,36.33463431,136.9,136.83,35.75499136]
[1642602025919,36.33463431,136.9,136.84,10.53]
[1642602026218,36.33463431,136.9,136.84,10.78]
[1642602026418,10.9623,136.89,136.84,10.78]
[1642602028520,12.41251664,136.9,136.84,10.78]
[1642602028922,2.376,136.91,136.84,10.78]
[1642602029122,2.06668098,136.96,136.85,6.0]
[1642602029325,48.88621084,136.95,136.86,74.13767278]
[1642602029522,51.26421084,136.95,136.86,74.13767278]
[1642602029720,48.88621084,136.95,136.86,74.13767278]
[1642602030421,10.9584,136.94,136.86,85.09627278]
[1642602030622,13.3384,136.94,136.86,85.09627278]
[1642602033326,2.38,136.94,136.86,85.09627278]
[1642602033526,2.38,136.94,136.87,78.93]
[1642602033727,73.28121084,136.95,136.88,21.737]
[1642602033728,26.771,136.95,136.88,21.737]
[1642602034028,2.376,136.95,136.89,6.0]
[1642602034231,2.376,136.95,136.9,0.25]
[1642602035830,13.3336,136.95,136.9,0.25]
[1642602037836,10.9576,136.95,136.9,0.25]
[1642602038838,10.9568,136.96,136.9,0.25]
[1642602039039,2.376,136.97,136.91,10.53]
[1642602039238,2.376,136.97,136.92,0.25]
[1642602039838,38.84713654,136.97,136.92,0.25]
[1642602041337,2.376,136.97,136.92,0.25]
[1642602043466,1.20388348,136.99,136.92,16.78]
[1642602043665,2.376,137.0,136.92,16.78]
[1642602043865,27.18945434,137.02,136.93,72.93]
[1642602044067,25.12277336,137.02,136.94,16.53]
[1642602044265,25.12277336,137.02,136.95,38.67907839]
[1642602044565,25.12277336,137.02,136.96,10.53]
[1642602044768,25.12277336,137.02,136.96,16.78]
[1642602045568,25.12277336,137.02,136.97,2.919]
[1642602045767,25.12277336,137.02,136.98,10.78]
[1642602046069,29.20848098,137.07,136.99,10.949]
[1642602046070,10.9487,137.06,136.99,10.949]
[1642602046266,10.9487,137.06,137.0,0.25]
[1642602046466,2.374,137.05,137.0,0.25]
[1642602050972,2.374,137.05,137.0,11.1982]
[1642602051172,38.0897,137.07,137.0,11.1982]
[1642602051371,38.0897,137.07,137.01,10.53]
[1642602051774,38.0897,137.07,137.02,0.25]
[1642602053072,38.0897,137.07,137.01,10.53]
[1642602054577,38.0897,137.07,137.02,0.25]
[1642602056280,38.0897,137.07,136.99,10.53]
[1642602056480,10.9521,137.04,136.99,10.53]
[1642602056680,2.626,137.03,136.99,10.53]
[1642602056880,45.32092345,137.04,136.99,10.53]
[1642602057080,2.376,137.03,136.99,10.53]
[1642602057282,2.626,137.03,136.99,10.53]
[1642602057582,10.9531,137.02,136.99,10.53]
[1642602057781,10.9531,137.02,137.0,6.06439994]
[1642602059485,13.3272,137.03,137.0,6.06439994]
[1642602059886,2.376,137.03,137.0,6.06439994]
[1642602060694,47.69692345,137.04,137.0,6.06439994]
[1642602060888,45.32092345,137.04,137.0,6.06439994]
[1642602061489,56.27132345,137.04,137.0,6.06439994]
[1642602061914,45.32092345,137.04,137.0,6.06439994]
[1642602062116,2.376,137.05,137.01,0.25]
[1642602062316,29.20848098,137.07,137.01,0.25]
[1642602062519,24.7658,137.07,137.01,0.25]
[1642602063519,57.40165429,137.06,137.01,0.25]
[1642602064520,10.9488,137.06,137.01,0.25]
[1642602064725,26.83248098,137.07,137.01,0.25]
[1642602064925,24.7658,137.07,137.01,0.25]
[1642602065124,24.7658,137.07,137.01,10.53]
[1642602065524,24.7658,137.07,137.02,41.56736771]
[1642602065726,24.7658,137.07,137.03,10.53]
[1642602065926,2.376,137.09,137.03,21.4757]
[1642602066128,2.376,137.09,137.04,0.25]
[1642602066328,2.376,137.1,137.04,6.25]
[1642602066922,2.376,137.11,137.04,6.25]
[1642602067121,4.44268098,137.11,137.04,0.25]
[1642602067322,2.376,137.11,137.04,0.25]
[1642602067521,0.25,137.1,137.04,0.25]
[1642602067725,2.376,137.09,137.04,0.25]
[1642602070929,13.3224,137.09,137.04,0.25]
[1642602072429,2.376,137.09,137.04,0.25]
[1642602075831,2.376,137.09,137.04,45.09088859]
[1642602076531,2.376,137.09,137.04,0.25]
[1642602077535,2.376,137.09,137.04,11.195]
[1642602077735,2.376,137.09,137.04,21.725]
[1642602077933,2.626,137.1,137.04,21.725]
[1642602078333,2.626,137.1,137.05,48.15090639]
[1642602078535,2.626,137.1,137.05,59.09500639]
[1642602078735,2.626,137.1,137.06,0.25]
[1642602078935,2.626,137.1,137.06,16.78]
[1642602080536,2.626,137.1,137.06,27.7235]
[1642602081837,2.626,137.1,137.06,21.7235]
[1642602086345,0.25,137.1,137.06,10.78]
[1642602087047,0.25,137.1,137.06,10.53]
[1642602087247,0.25,137.1,137.02,10.9456]
[1642602087447,2.378,137.09,137.02,10.53]
[1642602087848,2.31668098,137.08,137.02,10.53]
[1642602088048,2.06668098,137.07,137.02,45.97339202]
[1642602088248,0.25,137.06,137.02,45.97339202]
[1642602088649,0.25,137.06,137.02,10.53]
[1642602089248,11.1989,137.06,137.02,10.53]
[1642602089452,0.25,137.06,137.02,10.53]
[1642602089652,2.31668098,137.06,137.02,10.53]
[1642602090552,13.26578098,137.06,137.02,10.53]
[1642602090752,13.26578098,137.06,136.97,33.957]
[1642602090959,64.61083761,137.05,136.98,0.25]
[1642602091154,0.25,137.04,136.98,0.25]
[1642602092356,25.7697,137.05,136.99,10.53]
[1642602092554,23.3937,137.05,136.99,10.53]
[1642602092753,23.3937,137.05,137.0,0.25]
[1642602093154,0.25,137.04,137.0,0.25]
[1642602093956,23.3937,137.05,137.0,36.97069548]
[1642602094155,4.44068098,137.06,137.01,10.53]
[1642602094361,2.06668098,137.07,137.01,10.53]
[1642602094556,26.07918098,137.08,137.01,10.53]
[1642602094755,4.43768098,137.07,137.01,10.53]
[1642602094957,2.06668098,137.06,137.01,10.53]
[1642602095157,13.01858098,137.05,136.95,2.919]
[1642602095358,13.01858098,137.05,136.96,10.53]
[1642602095359,23.5226,137.04,136.96,10.53]
[1642602095557,2.376,137.03,136.97,10.53]
[1642602095777,2.626,137.03,136.97,58.6847616]
[1642602096384,2.376,137.03,136.98,0.25]
[1642602096585,10.9528,137.02,136.98,0.25]
[1642602097390,10.9528,137.02,136.98,10.78]
[1642602098390,10.9528,137.02,136.98,10.53]
[1642602098589,11.2031,137.01,136.98,10.53]
[1642602098992,11.2031,137.01,136.99,6.06439994]
[1642602099193,11.2031,137.01,136.92,2.919]
[1642602099393,26.7822,137.0,136.94,10.53]
[1642602099598,10.9561,136.99,136.94,10.53]
[1642602099793,2.374,136.98,136.94,10.53]
[1642602100194,0.25,136.97,136.94,10.53]
[1642602100395,0.25,136.97,136.95,6.06439994]
[1642602100798,2.372,136.99,136.93,44.49207714]
[1642602100995,2.372,136.99,136.94,10.78]
[1642602100996,10.956,136.97,136.94,10.78]
[1642602101897,24.4062,137.0,136.95,6.06439994]
[1642602102101,0.25,136.99,136.95,6.06439994]
[1642602102301,2.373,136.99,136.96,35.13397378]
[1642602102501,26.7822,137.0,136.96,35.38397378]
[1642602102705,24.4062,137.0,136.96,35.13397378]
[1642602102900,24.4062,137.0,136.94,10.53]
[1642602103105,0.25,136.99,136.94,10.53]
[1642602103307,2.632,136.99,136.94,10.53]
[1642602104401,10.9559,136.98,136.94,10.53]
[1642602104803,0.25,136.97,136.94,10.53]
[1642602105802,0.25,136.97,136.95,6.06439994]
[1642602106000,10.9566,136.97,136.95,3.03219997]
[1642602106201,10.9566,136.97,136.92,57.89035165]
[1642602106401,10.9566,136.97,136.93,0.25]
[1642602108205,10.9566,136.97,136.93,10.78]
[1642602114936,0.25,136.96,136.93,10.53]
[1642602115134,10.9581,136.95,136.93,10.53]
[1642602115735,53.08419039,136.95,136.93,10.53]
[1642602116233,0.25,136.94,136.86,24.8834]
[1642602116434,10.9616,136.92,136.87,10.53]
[1642602116632,12.5306,136.92,136.87,10.53]
[1642602116833,2.372,136.91,136.87,10.53]
[1642602117033,12.5306,136.92,136.87,10.53]
[1642602117238,12.5306,136.92,136.88,37.29447821]
[1642602117533,1.569,136.92,136.89,10.53]
[1642602119035,1.569,136.92,136.9,6.06439994]
[1642602119234,1.569,136.92,136.9,6.31439994]
[1642602119436,1.569,136.92,136.9,6.06439994]
[1642602120538,12.5291,136.92,136.89,10.53]
[1642602121839,10.9601,136.92,136.89,10.53]
[1642602122245,0.25,136.91,136.89,10.53]
[1642602122447,11.2112,136.91,136.89,10.53]
[1642602122647,25.999,136.94,136.89,10.53]
[1642602123047,23.629,136.94,136.9,0.25]
[1642602123248,23.629,136.94,136.9,10.78]
[1642602124452,34.588,136.94,136.9,10.78]
[1642602124650,34.588,136.94,136.9,48.72679033]
[1642602126752,13.3145,136.96,136.9,48.72679033]
[1642602127556,13.3145,136.96,136.91,6.0]
[1642602127755,13.3145,136.96,136.92,0.25]
[1642602127955,13.3145,136.96,136.9,48.72679033]
[1642602134858,10.9575,136.96,136.9,48.72679033]
[1642602142496,10.9575,136.96,136.9,48.47679033]
[1642602143894,10.9575,136.96,136.91,0.25]
[1642602144096,10.9575,136.96,136.92,10.53]
[1642602144297,10.9575,136.96,136.93,39.48146855]
[1642602146299,10.9575,136.96,136.94,6.06439994]
[1642602146900,10.9575,136.96,136.93,39.23146855]
[1642602147097,2.376,136.95,136.93,39.23146855]
[1642602147297,10.9584,136.94,136.93,39.23146855]
[1642602149101,10.9584,136.94,136.93,39.48146855]
[1642602149301,10.9584,136.94,136.93,45.54586849]
[1642602149502,10.9584,136.94,136.93,39.48146855]
[1642602149802,10.9584,136.94,136.93,39.23146855]
[1642602150204,25.02258098,136.98,136.93,39.48146855]
[1642602150410,25.02258098,136.98,136.94,10.53]
[1642602150603,25.02258098,136.98,136.94,10.78]
[1642602151004,2.06668098,136.98,136.94,10.78]
[1642602151407,13.02178098,136.99,136.94,10.78]
[1642602152007,2.06668098,136.99,136.95,7.35477847]
[1642602152207,2.06668098,137.02,136.96,10.78]
[1642602152405,15.39798098,137.03,136.96,10.78]
[1642602152705,15.39798098,137.03,136.97,6.0]
[1642602152907,15.39798098,137.03,136.98,47.89356916]
[1642602153105,13.01798098,137.03,136.98,48.14356916]
[1642602153707,10.9513,137.03,136.98,48.14356916]
[1642602154308,13.3243,137.03,136.98,48.14356916]
[1642602155310,0.25,137.02,136.98,48.14356916]
[1642602155511,13.3243,137.03,136.98,48.14356916]
[1642602156812,13.3243,137.03,136.98,10.78]
[1642602158113,0.25,137.02,136.98,10.78]
[1642602158312,10.952,137.02,136.98,10.78]
[1642602161215,55.43561459,137.02,136.98,10.78]
[1642602161617,10.952,137.02,136.98,10.78]
[1642602162215,10.952,137.02,136.98,10.53]
[1642602163518,55.99053908,137.02,136.98,10.53]
[1642602165621,2.376,137.01,136.98,10.53]
[1642602165822,10.9538,137.0,136.98,10.53]
[1642602166623,10.9538,137.0,136.95,10.53]
[1642602166823,10.9538,137.0,136.95,10.78]
[1642602166824,2.38,136.99,136.95,10.78]
[1642602167048,10.9559,136.98,136.95,10.78]
[1642602167449,2.388,137.01,136.95,10.78]
[1642602167849,4.45868098,137.03,136.95,10.78]
[1642602168050,0.25,137.0,136.95,10.78]
[1642602168249,2.396,136.99,136.95,10.78]
[1642602168450,47.08366912,136.98,136.95,10.78]
[1642602171455,36.12766912,136.98,136.96,6.06439994]
[1642602171756,10.9544,136.99,136.95,10.78]
[1642602172664,46.21067544,136.98,136.95,10.78]
[1642602173355,57.16587544,136.98,136.95,10.78]
[1642602179970,10.9552,136.98,136.95,10.78]
[1642602183779,10.9552,136.98,136.95,0.25]
[1642602184277,10.9552,136.98,136.93,0.25]
[1642602184680,10.9552,136.98,136.94,10.53]
[1642602185076,10.9552,136.98,136.95,0.25]
[1642602185280,10.9552,136.98,136.96,6.06439994]
[1642602185476,10.9552,136.98,136.95,0.25]
[1642602187280,33.9357,137.0,136.96,6.06439994]
[1642602187479,10.9543,137.0,136.96,16.59439994]
[1642602187678,2.06668098,137.02,136.97,0.25]
[1642602187878,4.44268098,137.03,136.98,10.53]
[1642602188278,4.44268098,137.03,136.99,0.25]
[1642602188480,4.44268098,137.03,136.99,6.25]
[1642602188681,4.44268098,137.03,136.99,0.25]
[1642602189483,15.39388098,137.03,136.99,0.25]
[1642602190181,15.39388098,137.03,136.99,10.53]
[1642602190480,13.01788098,137.03,136.99,10.53]
[1642602190681,13.01788098,137.03,137.0,0.25]
[1642602191380,13.01788098,137.03,137.01,3.03219997]
[1642602191580,10.9512,137.03,137.01,3.03219997]
[1642602192782,10.9512,137.03,137.02,3.03219997]
[1642602193280,10.9512,137.03,137.01,3.03219997]
[1642602193680,10.9512,137.03,137.0,0.25]
[1642602194081,10.9512,137.03,137.01,6.06439994]
[1642602195083,10.9512,137.03,137.01,3.03219997]
[1642602195381,10.9512,137.03,136.99,10.53]
[1642602195581,13.3272,137.03,136.99,10.53]
[1642602196182,13.3272,137.03,137.0,0.25]
[1642602197585,13.3272,137.03,137.01,6.06439994]
[1642602197785,10.9512,137.03,137.01,6.06439994]
[1642602200385,10.9512,137.03,137.0,10.53]
[1642602200584,10.9512,137.03,137.01,3.28219997]
[1642602200783,10.9512,137.03,137.01,6.31439994]
[1642602200985,10.9512,137.03,137.01,6.06439994]
[1642602201186,10.9512,137.03,137.0,10.53]
[1642602202287,2.376,137.02,136.97,6.0]
[1642602202487,38.37389576,137.01,136.97,10.53]
[1642602203587,49.32699576,137.01,136.97,10.53]
[1642602203988,10.9531,137.01,136.97,10.53]
[1642602204188,2.376,137.02,136.97,10.53]
[1642602204389,2.06668098,137.03,136.97,10.53]
[1642602204390,2.06668098,137.04,136.97,10.53]
[1642602204588,25.01228098,137.05,136.98,0.25]
[1642602204790,25.01228098,137.05,136.99,10.53]
[1642602204991,42.19640541,137.04,136.99,10.53]
[1642602205489,10.9512,137.03,136.99,10.53]
[1642602207194,10.9512,137.03,137.0,0.25]
[1642602207893,10.9512,137.03,136.99,10.53]
[1642602209019,13.3272,137.03,136.99,10.53]
[1642602210527,15.39388098,137.03,136.99,10.53]
[1642602210724,20.98988098,137.03,136.99,10.53]
[1642602211128,10.9551,137.0,136.95,10.53]
[1642602211327,10.9551,137.0,136.93,13.449]
[1642602211529,25.2245,136.99,136.93,13.449]
[1642602211729,27.29118098,136.99,136.93,13.449]
[1642602212127,10.9572,136.98,136.93,46.31570683]
[1642602212529,10.9572,136.98,136.94,6.25]
[1642602212727,10.9572,136.98,136.94,16.78]
[1642602214628,10.9572,136.98,136.94,16.53]
[1642602214927,10.9572,136.98,136.95,0.25]
[1642602216929,10.9572,136.98,136.93,0.25]
[1642602219535,13.3332,136.98,136.93,0.25]
[1642602223542,10.9572,136.98,136.93,0.25]
[1642602224544,2.376,136.97,136.93,0.25]
[1642602224746,10.9569,136.96,136.93,0.25]
[1642602225445,10.9569,136.96,136.92,10.53]
[1642602226146,10.9569,136.96,136.93,0.25]
[1642602226346,10.9569,136.96,136.94,6.06439994]
[1642602226746,62.7423,136.99,136.94,6.06439994]
[1642602226981,26.2169,136.99,136.94,16.59439994]